[Event "*** Titled Tuesday Blitz"]
[Site "Chess.com"]
[Date "2020.10.20"]
[Round "2"]
[White "Gloomy_Wanderer"]
[Black "kingofthenil"]
[Result "1-0"]
[WhiteElo "2718"]
[BlackElo "2458"]
[TimeControl "180+1"]
[EndTime "10:19:43 PDT"]
[Termination "Gloomy_Wanderer won by resignation"]

1. d4 {[%clk 0:03:00.9]} 1... Nf6 {[%clk 0:02:59.3]} 2. Nf3 {[%clk 0:03:00.6]}
2... c5 {[%clk 0:02:57.8]} 3. d5 {[%clk 0:03:00.3]} 3... e6 {[%clk 0:02:57.6]}
4. c4 {[%clk 0:03:00.4]} 4... exd5 {[%clk 0:02:57.2]} 5. cxd5 {[%clk 0:03:01.3]}
5... g6 {[%clk 0:02:58.1]} 6. Nc3 {[%clk 0:03:01.6]} 6... Bg7 {[%clk 0:02:57.9]}
7. Bf4 {[%clk 0:03:01.9]} 7... O-O {[%clk 0:02:57.7]} 8. e3 {[%clk 0:02:48.3]}
8... d6 {[%clk 0:02:57.4]} 9. h3 {[%clk 0:02:48.1]} 9... Na6 {[%clk 0:02:54.9]}
10. Be2 {[%clk 0:02:46.6]} 10... Nc7 {[%clk 0:02:54.2]} 11. O-O {[%clk
0:02:45.8]} 11... Rb8 {[%clk 0:02:52.2]} 12. a4 {[%clk 0:02:45.4]} 12... a6
{[%clk 0:02:52.5]} 13. a5 {[%clk 0:02:44.8]} 13... b5 {[%clk 0:02:52.4]} 14.
axb6 {[%clk 0:02:44.7]} 14... Rxb6 {[%clk 0:02:53.3]} 15. Ra2 {[%clk 0:02:42]}
15... Bf5 {[%clk 0:02:50.7]} 16. Nd2 {[%clk 0:01:51.8]} 16... Nfxd5 {[%clk
0:02:49.5]} 17. Nxd5 {[%clk 0:01:52.7]} 17... Nxd5 {[%clk 0:02:50.3]} 18. Nc4
{[%clk 0:01:53.3]} 18... Nxf4 {[%clk 0:02:47.2]} 19. exf4 {[%clk 0:01:54.2]}
19... Rb4 {[%clk 0:02:40]} 20. Rxa6 {[%clk 0:01:46]} 20... d5 {[%clk 0:02:26.6]}
21. Ne3 {[%clk 0:01:46]} 21... Be6 {[%clk 0:02:03.6]} 22. f5 {[%clk 0:01:37.4]}
22... gxf5 {[%clk 0:02:04.5]} 23. Bd3 {[%clk 0:01:37.7]} 23... Qg5 {[%clk
0:01:50.2]} 24. Qf3 {[%clk 0:01:26.6]} 24... f4 {[%clk 0:01:15.1]} 25. h4 {[%clk
0:01:26.2]} 25... Qxh4 {[%clk 0:00:48.1]} 26. Nxd5 {[%clk 0:01:26.1]} 26... Rd4
{[%clk 0:00:37.4]} 27. Be4 {[%clk 0:00:57]} 27... Bg4 {[%clk 0:00:24.6]} 28.
Qxf4 {[%clk 0:00:52.7]} 28... f5 {[%clk 0:00:25.2]} 29. f3 {[%clk 0:00:40.4]}
29... Rxe4 {[%clk 0:00:14.3]} 30. fxe4 {[%clk 0:00:36.4]} 30... fxe4 {[%clk
0:00:15.2]} 31. Qxf8+ {[%clk 0:00:31.2]} 31... Bxf8 {[%clk 0:00:16.1]} 32. Ra8
{[%clk 0:00:31]} 32... Qh6 {[%clk 0:00:11]} 33. Nf6+ {[%clk 0:00:28.5]} 33...
Kg7 {[%clk 0:00:02.3]} 34. Nxg4 {[%clk 0:00:28.4]} 34... Qg5 {[%clk 0:00:02.5]}
35. Rfxf8 {[%clk 0:00:26.5]} 35... Qd5 {[%clk 0:00:02.9]} 36. Rg8+ {[%clk
0:00:24]} 36... Kf7 {[%clk 0:00:02.6]} 37. Raf8+ {[%clk 0:00:22.6]} 37... Ke7
{[%clk 0:00:02.5]} 38. Re8+ {[%clk 0:00:23.1]} 38... Kf7 {[%clk 0:00:02.3]} 39.
Ne5+ {[%clk 0:00:17.8]} 39... Kf6 {[%clk 0:00:02.3]} 40. Rgf8+ {[%clk
0:00:18.2]} 40... Kg7 {[%clk 0:00:02.5]} 41. Rf7+ {[%clk 0:00:18]} 41... Kh6
{[%clk 0:00:03.1]} 42. Rfe7 {[%clk 0:00:15.3]} 42... Qd4+ {[%clk 0:00:02.9]} 43.
Kh2 {[%clk 0:00:13.9]} 43... e3 {[%clk 0:00:03.6]} 44. Ng4+ {[%clk 0:00:14]}
44... Qxg4 {[%clk 0:00:03.2]} 45. Re6+ {[%clk 0:00:14.7]} 45... Kg7 {[%clk
0:00:02.8]} 46. Rxe3 {[%clk 0:00:15.3]} 46... Qd4 {[%clk 0:00:02.7]} 47. b3
{[%clk 0:00:14.5]} 47... Kh6 {[%clk 0:00:02.8]} 48. R8e6+ {[%clk 0:00:14.1]}
48... Kg7 {[%clk 0:00:03.1]} 49. R6e4 {[%clk 0:00:15]} 49... Qd6+ {[%clk
0:00:02.6]} 50. g3 {[%clk 0:00:15.6]} 50... h6 {[%clk 0:00:03.1]} 51. Kg2 {[%clk
0:00:15.7]} 51... Qd2+ {[%clk 0:00:02.9]} 52. Kf3 {[%clk 0:00:16.2]} 52... Qd5
{[%clk 0:00:03.8]} 53. Ke2 {[%clk 0:00:16.2]} 53... Qc6 {[%clk 0:00:02.4]} 54.
Rc4 {[%clk 0:00:15.6]} 54... Qb5 {[%clk 0:00:02.5]} 55. Rc3 {[%clk 0:00:15.5]}
55... Qe8+ {[%clk 0:00:03]} 56. Kd2 {[%clk 0:00:15.9]} 56... Qd7+ {[%clk
0:00:03.5]} 57. Kc2 {[%clk 0:00:16.5]} 57... Qf5+ {[%clk 0:00:03.3]} 58. Kb2
{[%clk 0:00:17.1]} 58... Qf2+ {[%clk 0:00:03.2]} 59. Ka3 {[%clk 0:00:17.7]}
59... Qe1 {[%clk 0:00:02.2]} 60. Rxc5 {[%clk 0:00:18]} 60... Qa1+ {[%clk
0:00:01.8]} 61. Kb4 {[%clk 0:00:18.7]} 61... Qb2 {[%clk 0:00:02.5]} 62. Kb5
{[%clk 0:00:17.7]} 62... Kg6 {[%clk 0:00:02.5]} 63. b4 {[%clk 0:00:17.2]} 63...
Qe2+ {[%clk 0:00:02.8]} 64. Ka5 {[%clk 0:00:17.2]} 64... Qa2+ {[%clk 0:00:03.2]}
65. Kb6 {[%clk 0:00:17.7]} 65... Qb2 {[%clk 0:00:01.8]} 66. b5 {[%clk
0:00:18.3]} 66... h5 {[%clk 0:00:02.1]} 67. Ka6 {[%clk 0:00:18.5]} 67... Qa2+
{[%clk 0:00:02]} 68. Kb7 {[%clk 0:00:19]} 68... Qf7+ {[%clk 0:00:01.3]} 69. Ka6
{[%clk 0:00:18.9]} 69... Qa2+ {[%clk 0:00:01.3]} 70. Kb6 {[%clk 0:00:19.2]}
70... Qf7 {[%clk 0:00:01.3]} 71. Rc6+ {[%clk 0:00:19.2]} 71... Kg5 {[%clk
0:00:01.9]} 72. R3c4 {[%clk 0:00:19.3]} 72... Qe8 {[%clk 0:00:02.7]} 73. R6c5+
{[%clk 0:00:19.1]} 73... Kg6 {[%clk 0:00:02.8]} 74. Kb7 {[%clk 0:00:19.2]} 74...
Qd7+ {[%clk 0:00:02.8]} 75. Ka6 {[%clk 0:00:19]} 75... Qc8+ {[%clk 0:00:02.8]}
76. Rxc8 {[%clk 0:00:18.6]} 1-0

[Event "*** Titled Tuesday Blitz"]
[Site "Chess.com"]
[Date "2020.10.20"]
[Round "2"]
[White "zmeeed67"]
[Black "niki_2003"]
[Result "0-1"]
[WhiteElo "2336"]
[BlackElo "1839"]
[TimeControl "180+1"]
[EndTime "10:19:43 PDT"]
[Termination "niki_2003 won on time"]

1. e4 {[%clk 0:03:00.9]} 1... c5 {[%clk 0:02:55.5]} 2. g3 {[%clk 0:03:00.3]}
2... a6 {[%clk 0:02:53.3]} 3. Bg2 {[%clk 0:03:00]} 3... b5 {[%clk 0:02:53.2]} 4.
Ne2 {[%clk 0:02:59.2]} 4... Bb7 {[%clk 0:02:53.1]} 5. O-O {[%clk 0:02:57.9]}
5... e6 {[%clk 0:02:53.7]} 6. d3 {[%clk 0:02:56]} 6... d5 {[%clk 0:02:53.8]} 7.
a4 {[%clk 0:02:39.8]} 7... bxa4 {[%clk 0:02:50.3]} 8. c3 {[%clk 0:02:35.9]} 8...
Be7 {[%clk 0:02:47.5]} 9. Qxa4+ {[%clk 0:02:34.3]} 9... Bc6 {[%clk 0:02:46.2]}
10. Qc2 {[%clk 0:02:18.5]} 10... Nf6 {[%clk 0:02:43]} 11. Bf4 {[%clk 0:02:12.1]}
11... O-O {[%clk 0:02:40.9]} 12. Nd2 {[%clk 0:02:11]} 12... Nh5 {[%clk
0:02:33.3]} 13. Be3 {[%clk 0:02:07.8]} 13... Bb7 {[%clk 0:02:22.4]} 14. d4
{[%clk 0:01:58.8]} 14... c4 {[%clk 0:02:18.7]} 15. e5 {[%clk 0:01:57]} 15... Nc6
{[%clk 0:02:16.3]} 16. g4 {[%clk 0:01:54.7]} 16... f5 {[%clk 0:01:52.6]} 17.
gxh5 {[%clk 0:01:51.8]} 17... Qe8 {[%clk 0:01:46.5]} 18. f4 {[%clk 0:01:47.4]}
18... Qxh5 {[%clk 0:01:45.4]} 19. Ng3 {[%clk 0:01:46.7]} 19... Qg6 {[%clk
0:01:43]} 20. Qd1 {[%clk 0:01:42.3]} 20... Bh4 {[%clk 0:01:41]} 21. Qh5 {[%clk
0:01:37]} 21... Bxg3 {[%clk 0:01:36.9]} 22. Qxg6 {[%clk 0:01:36.2]} 22... Bxh2+
{[%clk 0:01:36.9]} 23. Kxh2 {[%clk 0:01:35.3]} 23... hxg6 {[%clk 0:01:36.7]} 24.
Nf3 {[%clk 0:01:26.9]} 24... Kf7 {[%clk 0:01:32]} 25. Ng5+ {[%clk 0:01:24.5]}
25... Ke7 {[%clk 0:01:31.4]} 26. Kg3 {[%clk 0:01:24]} 26... a5 {[%clk
0:01:29.7]} 27. Rh1 {[%clk 0:01:21.9]} 27... Rh8 {[%clk 0:01:29.6]} 28. Kf2
{[%clk 0:01:08]} 28... Rh5 {[%clk 0:01:22.1]} 29. Bf3 {[%clk 0:01:06.2]} 29...
Rh6 {[%clk 0:01:20.1]} 30. Rag1 {[%clk 0:00:43.5]} 30... a4 {[%clk 0:01:14.7]}
31. Bc1 {[%clk 0:00:42.7]} 31... Na5 {[%clk 0:01:12.3]} 32. Rh3 {[%clk
0:00:33.5]} 32... Nb3 {[%clk 0:01:08.4]} 33. Be3 {[%clk 0:00:31.2]} 33... a3
{[%clk 0:01:06.8]} 34. bxa3 {[%clk 0:00:30.9]} 34... Rxa3 {[%clk 0:01:05.8]} 35.
Rgh1 {[%clk 0:00:31.1]} 35... Ra2+ {[%clk 0:01:03.8]} 36. Kg3 {[%clk 0:00:30.1]}
36... Rxh3+ {[%clk 0:00:53.8]} 37. Rxh3 {[%clk 0:00:27.2]} 37... Rc2 {[%clk
0:00:54.2]} 38. Rh7 {[%clk 0:00:27.1]} 38... Rxc3 {[%clk 0:00:53.7]} 39. Rxg7+
{[%clk 0:00:26.9]} 39... Kf8 {[%clk 0:00:46.2]} 40. Rf7+ {[%clk 0:00:26.3]}
40... Ke8 {[%clk 0:00:43.2]} 41. Bf2 {[%clk 0:00:25.9]} 41... Bc8 {[%clk
0:00:40.3]} 42. Rc7 {[%clk 0:00:21.7]} 42... Bd7 {[%clk 0:00:38.4]} 43. Ra7
{[%clk 0:00:14.3]} 43... Rd3 {[%clk 0:00:25.1]} 44. Ra8+ {[%clk 0:00:10.6]}
44... Ke7 {[%clk 0:00:23.2]} 45. Rg8 {[%clk 0:00:10.8]} 45... Nxd4 {[%clk
0:00:16]} 46. Bxd4 {[%clk 0:00:10.6]} 46... Rxd4 {[%clk 0:00:16.1]} 47. Rxg6
{[%clk 0:00:10.9]} 47... c3 {[%clk 0:00:16.1]} 48. Rg7+ {[%clk 0:00:11.3]} 48...
Kd8 {[%clk 0:00:13.2]} 49. Nf7+ {[%clk 0:00:10.2]} 49... Kc7 {[%clk 0:00:12]}
50. Nd6 {[%clk 0:00:10.5]} 50... c2 {[%clk 0:00:10.6]} 51. Nb5+ {[%clk
0:00:10.8]} 51... Kc8 {[%clk 0:00:08.7]} 52. Nxd4 {[%clk 0:00:10.4]} 52... c1=Q
{[%clk 0:00:08.4]} 53. Ne2 {[%clk 0:00:08.6]} 53... Qe3 {[%clk 0:00:07.7]} 54.
Rf7 {[%clk 0:00:07.7]} 54... Qc1 {[%clk 0:00:07.1]} 55. Rf8+ {[%clk 0:00:06.4]}
55... Kc7 {[%clk 0:00:05.5]} 56. Rf7 {[%clk 0:00:06.4]} 56... Qe1+ {[%clk
0:00:03.9]} 57. Kg2 {[%clk 0:00:05.4]} 57... Qd2 {[%clk 0:00:04.2]} 58. Kf2
{[%clk 0:00:05]} 58... d4 {[%clk 0:00:04.6]} 59. Bd5 {[%clk 0:00:01.7]} 59... d3
{[%clk 0:00:04.7]} 60. Bxe6 {[%clk 0:00:01.4]} 60... Qxe2+ {[%clk 0:00:03.9]}
61. Kg3 {[%clk 0:00:01.6]} 61... Qe3+ {[%clk 0:00:04]} 0-1

[Event "*** Titled Tuesday Blitz"]
[Site "Chess.com"]
[Date "2020.10.20"]
[Round "2"]
[White "Ty3oB"]
[Black "Buffy7"]
[Result "0-1"]
[WhiteElo "2218"]
[BlackElo "2651"]
[TimeControl "180+1"]
[EndTime "10:19:45 PDT"]
[Termination "Buffy7 won by resignation"]

1. e4 {[%clk 0:03:00.9]} 1... d6 {[%clk 0:02:59.1]} 2. d4 {[%clk 0:02:56]} 2...
Nf6 {[%clk 0:02:59.6]} 3. Nc3 {[%clk 0:02:55.3]} 3... e5 {[%clk 0:03:00.1]} 4.
dxe5 {[%clk 0:02:48.4]} 4... dxe5 {[%clk 0:03:01]} 5. Qxd8+ {[%clk 0:02:48.4]}
5... Kxd8 {[%clk 0:03:01.9]} 6. Bg5 {[%clk 0:02:48.8]} 6... Nd7 {[%clk
0:02:45.2]} 7. f4 {[%clk 0:02:47.1]} 7... exf4 {[%clk 0:02:34.9]} 8. Bxf4 {[%clk
0:02:39.1]} 8... Bd6 {[%clk 0:02:28.3]} 9. Bxd6 {[%clk 0:02:38]} 9... cxd6
{[%clk 0:02:29.2]} 10. O-O-O {[%clk 0:02:38.3]} 10... Ke7 {[%clk 0:02:28]} 11.
Nf3 {[%clk 0:02:37.1]} 11... a6 {[%clk 0:02:25.8]} 12. Bc4 {[%clk 0:02:34.7]}
12... Ne5 {[%clk 0:02:06.1]} 13. Bd5 {[%clk 0:02:28.6]} 13... Rb8 {[%clk
0:01:58.4]} 14. Nd4 {[%clk 0:02:26.8]} 14... g6 {[%clk 0:01:49.1]} 15. Rhf1
{[%clk 0:02:25.1]} 15... Be6 {[%clk 0:01:47]} 16. h3 {[%clk 0:02:24]} 16... h5
{[%clk 0:01:12.1]} 17. Rf2 {[%clk 0:02:22.9]} 17... Bxd5 {[%clk 0:01:06.7]} 18.
exd5 {[%clk 0:02:16.8]} 18... h4 {[%clk 0:01:02]} 19. Rdf1 {[%clk 0:02:14.7]}
19... Nfd7 {[%clk 0:00:49.5]} 20. Ne4 {[%clk 0:02:10.7]} 20... Rbc8 {[%clk
0:00:42.4]} 21. Kb1 {[%clk 0:01:59.2]} 21... f5 {[%clk 0:00:30.3]} 22. Ng5
{[%clk 0:01:55.7]} 22... Rc5 {[%clk 0:00:29]} 23. Nde6 {[%clk 0:00:57.3]} 23...
Rxd5 {[%clk 0:00:27.7]} 24. Nf4 {[%clk 0:00:54.6]} 24... Rc5 {[%clk 0:00:27.7]}
25. Rd1 {[%clk 0:00:50.5]} 25... Nf6 {[%clk 0:00:18.3]} 26. Rfd2 {[%clk
0:00:48.5]} 26... Rc6 {[%clk 0:00:16.1]} 27. Re2 {[%clk 0:00:48]} 27... Rg8
{[%clk 0:00:14.3]} 28. Nf3 {[%clk 0:00:41.5]} 28... Ne4 {[%clk 0:00:12.5]} 29.
Nxh4 {[%clk 0:00:37.4]} 29... Kf6 {[%clk 0:00:10.8]} 30. Nd5+ {[%clk 0:00:35.4]}
30... Ke6 {[%clk 0:00:10.5]} 31. Nf3 {[%clk 0:00:35.9]} 31... Rgc8 {[%clk
0:00:05.8]} 32. c3 {[%clk 0:00:18.9]} 32... g5 {[%clk 0:00:04.6]} 33. Rxe4
{[%clk 0:00:16.2]} 33... fxe4 {[%clk 0:00:04.6]} 34. Nxg5+ {[%clk 0:00:17.1]}
34... Kf5 {[%clk 0:00:05]} 35. h4 {[%clk 0:00:17.7]} 35... Kg4 {[%clk
0:00:04.8]} 36. Ne7 {[%clk 0:00:17]} 36... Kxh4 {[%clk 0:00:03.5]} 37. Nxc6
{[%clk 0:00:16.1]} 37... Kxg5 {[%clk 0:00:03.1]} 38. Ne7 {[%clk 0:00:15.4]}
38... Re8 {[%clk 0:00:02.5]} 39. Nd5 {[%clk 0:00:15.3]} 39... Ng4 {[%clk
0:00:02.9]} 40. Re1 {[%clk 0:00:14.9]} 40... e3 {[%clk 0:00:03.5]} 41. Kc2
{[%clk 0:00:15.5]} 41... Re5 {[%clk 0:00:04.1]} 42. c4 {[%clk 0:00:15.4]} 42...
b5 {[%clk 0:00:03.8]} 43. b3 {[%clk 0:00:16.1]} 43... bxc4 {[%clk 0:00:04.2]}
44. bxc4 {[%clk 0:00:17]} 44... Nf2 {[%clk 0:00:04.3]} 45. Kc3 {[%clk
0:00:16.6]} 45... Ne4+ {[%clk 0:00:05.2]} 46. Kd4 {[%clk 0:00:16.9]} 46... Ng3
{[%clk 0:00:04.6]} 47. Nxe3 {[%clk 0:00:15]} 47... Nf5+ {[%clk 0:00:05.2]} 48.
Kd3 {[%clk 0:00:15.6]} 48... Ra5 {[%clk 0:00:05.7]} 49. Nxf5 {[%clk 0:00:14.5]}
49... Kxf5 {[%clk 0:00:06.6]} 50. Re2 {[%clk 0:00:15.2]} 50... Kf4 {[%clk
0:00:06.4]} 51. Kd4 {[%clk 0:00:15.6]} 51... Ra3 {[%clk 0:00:06.6]} 52. Rf2+
{[%clk 0:00:15.1]} 52... Kg3 {[%clk 0:00:06.3]} 53. Rb2 {[%clk 0:00:13.9]} 53...
a5 {[%clk 0:00:06]} 54. Kd5 {[%clk 0:00:14.1]} 54... Rd3+ {[%clk 0:00:06.1]} 55.
Kc6 {[%clk 0:00:14.4]} 55... a4 {[%clk 0:00:07]} 56. Kb5 {[%clk 0:00:12.6]}
56... a3 {[%clk 0:00:07.5]} 57. Rc2 {[%clk 0:00:12.9]} 57... Kf4 {[%clk
0:00:05.7]} 58. Kb4 {[%clk 0:00:13.1]} 58... Ke4 {[%clk 0:00:05.7]} 59. Rc3
{[%clk 0:00:13.7]} 59... Rd2 {[%clk 0:00:06.1]} 60. Rxa3 {[%clk 0:00:13.7]}
60... Rxg2 {[%clk 0:00:06.2]} 61. Ra8 {[%clk 0:00:08.7]} 61... Kd4 {[%clk
0:00:06]} 62. Rd8 {[%clk 0:00:06.2]} 62... Rb2+ {[%clk 0:00:06.3]} 63. Ka3
{[%clk 0:00:06.3]} 63... Rb6 {[%clk 0:00:05.2]} 64. Rc8 {[%clk 0:00:05.4]} 64...
Kc3 {[%clk 0:00:04.8]} 65. Ka4 {[%clk 0:00:05.9]} 65... Rb4+ {[%clk 0:00:04.6]}
66. Ka5 {[%clk 0:00:06.2]} 66... Rxc4 {[%clk 0:00:05.3]} 67. Rd8 {[%clk
0:00:05.9]} 67... Rc5+ {[%clk 0:00:03.1]} 68. Kb6 {[%clk 0:00:05.3]} 68... Kb4
{[%clk 0:00:03]} 69. Rxd6 {[%clk 0:00:04.8]} 69... Rb5+ {[%clk 0:00:03.5]} 70.
Kc6 {[%clk 0:00:05.4]} 70... Ra5 {[%clk 0:00:03.9]} 71. Rd4+ {[%clk 0:00:05.6]}
71... Kc3 {[%clk 0:00:04.4]} 72. Rh4 {[%clk 0:00:05.9]} 72... Rxa2 {[%clk
0:00:04.2]} 73. Rh3+ {[%clk 0:00:05.5]} 73... Kd4 {[%clk 0:00:04.5]} 74. Rh4+
{[%clk 0:00:06]} 74... Ke5 {[%clk 0:00:05.1]} 0-1

[Event "*** Titled Tuesday Blitz"]
[Site "Chess.com"]
[Date "2020.10.20"]
[Round "2"]
[White "Chessbard1972"]
[Black "FloMasterAAK"]
[Result "0-1"]
[WhiteElo "2301"]
[BlackElo "2530"]
[TimeControl "180+1"]
[EndTime "10:19:51 PDT"]
[Termination "FloMasterAAK won on time"]

1. e4 {[%clk 0:03:00.9]} 1... e5 {[%clk 0:02:59.2]} 2. Nf3 {[%clk 0:03:00.2]}
2... Nc6 {[%clk 0:02:59.3]} 3. Bc4 {[%clk 0:03:00]} 3... Nf6 {[%clk 0:02:58.9]}
4. Ng5 {[%clk 0:02:59.6]} 4... d5 {[%clk 0:02:58.9]} 5. exd5 {[%clk 0:02:59]}
5... Na5 {[%clk 0:02:59.3]} 6. Bb5+ {[%clk 0:02:58.9]} 6... c6 {[%clk
0:02:59.4]} 7. dxc6 {[%clk 0:02:58.9]} 7... bxc6 {[%clk 0:02:59.7]} 8. Qf3
{[%clk 0:02:59.4]} 8... Be7 {[%clk 0:02:57.6]} 9. Nc3 {[%clk 0:02:55.7]} 9...
O-O {[%clk 0:02:56.2]} 10. O-O {[%clk 0:02:51.8]} 10... Rb8 {[%clk 0:02:52.3]}
11. Bd3 {[%clk 0:02:50.1]} 11... c5 {[%clk 0:02:47.4]} 12. Nce4 {[%clk
0:02:38.4]} 12... h6 {[%clk 0:02:46.3]} 13. Nxf6+ {[%clk 0:02:34.2]} 13... Bxf6
{[%clk 0:02:47.2]} 14. Qe4 {[%clk 0:02:23.5]} 14... g6 {[%clk 0:02:41.2]} 15.
Nxf7 {[%clk 0:02:12.5]} 15... Rxf7 {[%clk 0:02:39.1]} 16. Qxg6+ {[%clk 0:02:12]}
16... Rg7 {[%clk 0:02:39.4]} 17. Qxh6 {[%clk 0:02:11]} 17... Nc6 {[%clk
0:02:15.2]} 18. Bc4+ {[%clk 0:02:06.9]} 18... Kf8 {[%clk 0:02:13.4]} 19. d3
{[%clk 0:01:57.4]} 19... Nd4 {[%clk 0:02:12.4]} 20. c3 {[%clk 0:01:36.9]} 20...
Nf3+ {[%clk 0:01:47.6]} 21. Kh1 {[%clk 0:01:35.9]} 21... Bb7 {[%clk 0:01:48.5]}
22. Be3 {[%clk 0:01:23.6]} 22... Rc8 {[%clk 0:01:32.8]} 23. b4 {[%clk
0:01:01.7]} 23... cxb4 {[%clk 0:01:15.4]} 24. cxb4 {[%clk 0:01:01.2]} 24... Ke7
{[%clk 0:01:11.1]} 25. Bc5+ {[%clk 0:00:58.9]} 25... Rxc5 {[%clk 0:01:10.8]} 26.
bxc5 {[%clk 0:00:58.5]} 26... Qd4 {[%clk 0:00:49.6]} 27. Rab1 {[%clk 0:00:52.8]}
27... Bc6 {[%clk 0:00:43.3]} 28. Bb5 {[%clk 0:00:39.8]} 28... Rxg2 {[%clk
0:00:11.3]} 29. Bxc6 {[%clk 0:00:22.9]} 29... Rxh2+ {[%clk 0:00:10.7]} 30. Qxh2
{[%clk 0:00:22.8]} 30... Nxh2 {[%clk 0:00:11.6]} 31. Kxh2 {[%clk 0:00:22.9]}
31... Qxc5 {[%clk 0:00:12.5]} 32. Be4 {[%clk 0:00:20]} 32... Bg5 {[%clk
0:00:12.5]} 33. Rb7+ {[%clk 0:00:18.9]} 33... Kd6 {[%clk 0:00:11.7]} 34. Kg2
{[%clk 0:00:18.6]} 34... Bh4 {[%clk 0:00:08.8]} 35. Rb2 {[%clk 0:00:16.6]} 35...
Qc8 {[%clk 0:00:08.2]} 36. f3 {[%clk 0:00:15.5]} 36... Qg8+ {[%clk 0:00:07.7]}
37. Kh1 {[%clk 0:00:14.5]} 37... Bg3 {[%clk 0:00:08.1]} 38. Rg2 {[%clk 0:00:12]}
38... Qh8+ {[%clk 0:00:08.3]} 39. Kg1 {[%clk 0:00:12]} 39... Bf4 {[%clk
0:00:09.2]} 40. Kf2 {[%clk 0:00:11.4]} 40... Kc5 {[%clk 0:00:08.9]} 41. Ke2
{[%clk 0:00:11.7]} 41... Kd4 {[%clk 0:00:08.1]} 42. Rfg1 {[%clk 0:00:11.5]}
42... Qc8 {[%clk 0:00:07.4]} 43. Rf2 {[%clk 0:00:10.1]} 43... Be3 {[%clk
0:00:05.9]} 44. Kf1 {[%clk 0:00:09.1]} 44... Bxf2 {[%clk 0:00:03.1]} 45. Kxf2
{[%clk 0:00:09.3]} 45... Qc2+ {[%clk 0:00:04]} 46. Kg3 {[%clk 0:00:09.4]} 46...
Qxa2 {[%clk 0:00:04.9]} 47. Rc1 {[%clk 0:00:09.3]} 47... Qd2 {[%clk 0:00:04.6]}
48. Rc4+ {[%clk 0:00:06.8]} 48... Ke3 {[%clk 0:00:04.6]} 49. Ra4 {[%clk
0:00:06.8]} 49... Qf2+ {[%clk 0:00:04.3]} 50. Kg4 {[%clk 0:00:07.1]} 50... Qh2
{[%clk 0:00:04.4]} 51. Kf5 {[%clk 0:00:07.4]} 51... Qf4+ {[%clk 0:00:04.1]} 52.
Ke6 {[%clk 0:00:07.6]} 52... Kd2 {[%clk 0:00:02.4]} 53. Rxa7 {[%clk 0:00:06.8]}
53... Ke3 {[%clk 0:00:03.1]} 54. Ra4 {[%clk 0:00:05.9]} 54... Qh6+ {[%clk
0:00:03.4]} 55. Kd5 {[%clk 0:00:06.2]} 55... Qg7 {[%clk 0:00:04.2]} 56. Rc4
{[%clk 0:00:05]} 56... Qd7+ {[%clk 0:00:03.9]} 57. Kc5 {[%clk 0:00:05.4]} 57...
Qe7+ {[%clk 0:00:04.8]} 58. Kd5 {[%clk 0:00:05.5]} 58... Kf4 {[%clk 0:00:04.9]}
59. Kc6 {[%clk 0:00:04.4]} 59... Qe6+ {[%clk 0:00:04.3]} 60. Kc5 {[%clk
0:00:03.2]} 60... Qe7+ {[%clk 0:00:05.2]} 61. Kc6 {[%clk 0:00:03]} 61... Ke3
{[%clk 0:00:06.1]} 62. Kd5 {[%clk 0:00:02]} 62... Qd8+ {[%clk 0:00:06.1]} 63.
Kxe5 {[%clk 0:00:02]} 63... Qe7+ {[%clk 0:00:07]} 64. Kd5 {[%clk 0:00:02.2]}
64... Qb7+ {[%clk 0:00:06.3]} 65. Kc5 {[%clk 0:00:02.2]} 65... Qa7+ {[%clk
0:00:05.8]} 66. Kd5 {[%clk 0:00:01.8]} 66... Qd7+ {[%clk 0:00:05.7]} 67. Kc5
{[%clk 0:00:01.4]} 67... Qd8 {[%clk 0:00:05.3]} 68. Kb4 {[%clk 0:00:00.8]} 68...
Qb6+ {[%clk 0:00:05.1]} 0-1